bitfinex-derivatives/quotes_ETHF0:USTF0_20250520
["timestamp","ask_amount","ask_price","bid_price","bid_amount"]
[1747711467158,4.066,2572.6,2572.5,9.327]
[1747711467755,4.066,2572.6,2572.5,10.5688]
[1747711468154,57.565,2572.6,2571.2,3.02259842]
[1747711468346,3.98543,2571.3,2571.2,3.02259842]
[1747711468751,8.98543,2571.3,2571.2,3.02259842]
[1747711469154,11.72543,2571.3,2571.2,3.02259842]
[1747711470153,6.72543,2571.3,2571.2,3.02259842]
[1747711470353,5.9478,2571.3,2571.2,2.02800772]
[1747711471158,5.9478,2571.3,2571.0,0.00582502]
[1747711471363,5.9478,2571.3,2571.1,0.10472108]
[1747711471563,1.2736,2571.2,2571.1,1.35432108]
[1747711472159,4.0136,2571.2,2571.1,1.35432108]
[1747711472962,4.0136,2571.2,2571.0,0.00582502]
[1747711473166,4.79127,2571.2,2571.0,0.00582502]
[1747711475267,0.77769,2571.1,2571.0,0.00582502]
[1747711475467,2.07989,2571.1,2571.0,0.00582502]
[1747711476270,4.81989,2571.1,2571.0,0.00582502]
[1747711479765,2.74,2571.1,2571.0,0.00582502]
[1747711479972,2.74,2571.1,2571.0,0.65149422]
[1747711482574,2.74,2571.1,2571.0,1.93229422]
[1747711482575,3.51769,2571.1,2571.0,1.93229422]
[1747711483170,2.74,2571.1,2571.0,1.93229422]
[1747711487172,2.74,2571.1,2571.0,1.28662502]
[1747711487673,4.033,2571.1,2571.0,1.28662502]
[1747711489488,4.81069,2571.1,2571.0,0.00582502]
[1747711490282,4.89555477,2571.1,2571.0,0.00582502]
[1747711492889,1.94438,2571.0,2570.4,1.3585]
[1747711493089,3.2078,2570.5,2570.4,1.3585]
[1747711493288,3.98567,2570.5,2570.4,1.3585]
[1747711493588,3.2078,2570.5,2570.4,2.24112108]
[1747711493789,3.2078,2570.5,2570.4,1.46322108]
[1747711494190,5.9478,2570.5,2570.4,1.46322108]
[1747711494591,6.72567,2570.5,2570.4,1.3585]
[1747711495687,5.9478,2570.5,2570.4,1.46322108]
[1747711497493,5.9478,2570.5,2570.4,2.0041692]
[1747711497692,5.9478,2570.5,2570.4,3.0719692]
[1747711498084,2.74,2570.5,2570.4,13.2078692]
[1747711498289,2.74,2570.5,2570.4,12.70045602]
[1747711498487,2.74,2570.5,2570.4,13.47835602]
[1747711499090,2.74,2570.5,2570.4,12.70045602]
[1747711499395,2.74,2570.5,2570.4,13.47835602]
[1747711499594,2.74,2570.5,2570.4,12.70045602]
[1747711499789,0.08486477,2571.1,2570.7,0.88252108]
[1747711499988,0.08486477,2571.1,2571.0,0.10472108]
[1747711500182,0.08486477,2571.1,2571.0,12.20272108]
[1747711500494,1.54705351,2571.5,2571.0,12.20272108]
[1747711500694,1.54705351,2571.5,2571.4,0.10472108]
[1747711501091,0.00582502,2571.5,2571.4,0.10472108]
[1747711501293,0.00582502,2571.5,2571.2,9.358]
[1747711501495,0.77763,2571.4,2571.3,0.10472108]
[1747711501695,0.00582502,2571.5,2571.3,0.10472108]
[1747711502394,0.00582502,2571.5,2571.4,0.10472108]
[1747711502884,0.78339502,2571.5,2571.4,0.10472108]
[1747711503086,0.77769,2571.2,2571.0,0.53677854]
[1747711503290,3.2078,2571.1,2571.0,0.64149962]
[1747711503487,0.77768,2571.2,2571.1,1.40552108]
[1747711503688,0.77768,2571.2,2571.1,1.3008]
[1747711503990,3.2078,2571.3,2571.1,1.3008]
[1747711504196,5.9478,2571.3,2571.1,1.3008]
[1747711504399,6.72544,2571.3,2571.1,1.3008]
[1747711504593,1.2561,2571.2,2571.0,0.20304456]
[1747711504897,0.77769,2571.1,2571.0,0.20304456]
[1747711505694,2.12779,2571.1,2571.0,0.20304456]
[1747711506186,4.86779,2571.1,2571.0,0.20304456]
[1747711507891,4.0901,2571.1,2571.0,0.20304456]
[1747711508197,4.8678,2571.1,2570.8,1.46674456]
[1747711508386,3.2078,2571.0,2570.8,1.46674456]
[1747711508791,2.04265,2570.9,2570.8,1.46674456]
[1747711508992,1.2649,2570.9,2570.8,1.46674456]
[1747711509198,4.0049,2570.9,2570.8,1.46674456]
[1747711510796,4.0049,2570.9,2570.8,0.20304456]
[1747711510797,4.78265,2570.9,2570.8,0.20304456]
[1747711511098,0.77781,2570.7,2570.6,0.27080424]
[1747711511301,3.98561,2570.7,2570.6,0.27080424]
[1747711511798,5.24843,2570.7,2570.4,0.7779]
[1747711511999,5.24843,2570.7,2570.2,0.27662926]
[1747711512000,0.77784,2570.6,2570.5,0.10472108]
[1747711512195,2.04064,2570.6,2570.5,0.10472108]
[1747711512396,2.04064,2570.6,2570.3,1.3261]
[1747711512598,2.04064,2570.6,2570.5,0.10472108]
[1747711512790,5.24844,2570.6,2570.5,0.10472108]
[1747711512995,5.24847,2570.6,2570.3,1.3261]
[1747711513198,7.98847,2570.6,2570.5,0.10472108]
[1747711513397,7.2106,2570.6,2570.5,0.10472108]
[1747711513593,7.2106,2570.6,2570.3,1.3261]
[1747711513798,7.2106,2570.6,2570.5,0.10472108]
[1747711514296,7.2106,2570.6,2570.4,0.7779]
[1747711514496,7.2106,2570.6,2570.5,0.10472108]
[1747711514697,7.2106,2570.6,2570.4,1.3471]
[1747711514901,7.2106,2570.6,2570.5,0.10472108]
[1747711515298,7.2106,2570.6,2570.4,1.3471]
[1747711515502,7.2106,2570.6,2570.5,0.10472108]
[1747711515698,7.2106,2570.6,2570.4,1.3471]
[1747711515900,7.2106,2570.6,2570.5,0.10472108]
[1747711516208,7.2106,2570.6,2570.4,2.125]
[1747711516406,7.2106,2570.6,2570.5,0.10472108]
[1747711516598,5.9478,2570.6,2570.5,1.45182108]
[1747711517007,6.72564,2570.6,2570.5,1.45182108]
[1747711517305,5.9478,2570.6,2570.5,1.45182108]
[1747711517809,7.2364,2570.6,2570.5,1.45182108]
[1747711518001,5.9478,2570.6,2570.5,1.45182108]
[1747711518403,5.9478,2570.6,2570.5,16.46069108]
[1747711518610,2.74,2570.6,2570.5,16.46069108]
[1747711518809,2.74,2570.6,2570.5,11.46069108]
[1747711520908,2.82486477,2570.6,2570.5,11.46069108]
[1747711521103,2.82486477,2570.6,2570.5,10.68282108]
[1747711521505,2.82486477,2570.6,2570.5,1.45182108]
[1747711523414,2.82486477,2570.6,2570.5,2.50043171]
[1747711524015,2.82486477,2570.6,2570.5,7.50043171]
[1747711524313,2.82486477,2570.6,2570.5,2.50043171]
[1747711524509,2.82486477,2570.6,2570.5,7.50043171]
[1747711526710,2.82486477,2570.6,2570.5,7.22969108]
[1747711527413,0.64680538,2571.5,2571.0,1.94431]
[1747711527604,0.64680538,2571.5,2571.3,0.10472108]
[1747711527801,1.3023,2571.4,2571.3,0.10472108]
[1747711528001,1.3023,2571.4,2571.3,2.25135108]
[1747711528206,4.0423,2571.4,2571.3,2.25135108]
[1747711529324,4.0423,2571.4,2571.3,2.14663]
[1747711530619,2.74,2571.4,2571.3,2.25135108]
[1747711532518,2.74,2571.4,2571.3,10.45915108]
[1747711533216,0.00582502,2571.5,2571.4,0.7776]
[1747711533518,0.00582502,2571.5,2571.4,2.22802108]
[1747711533817,5.02e-06,2571.5,2571.4,7.22802108]
[1747711534123,0.64098036,2572.3,2572.2,0.77736]
[1747711534309,0.64098036,2572.3,2572.2,0.88208108]
[1747711534516,0.64098036,2572.3,2572.2,0.77736]
[1747711535518,0.64098036,2572.3,2572.2,0.88208108]
[1747711535720,0.64098036,2572.3,2572.2,2.03808108]
[1747711536910,0.64098036,2572.3,2572.2,7.03808108]
[1747711537424,0.64098036,2572.3,2572.2,3.37038108]
[1747711538529,0.00582502,2572.5,2572.4,0.7773]
[1747711538718,0.00582502,2572.5,2572.4,0.88202108]
[1747711539926,5.00582502,2572.5,2572.1,3.2078]
[1747711540120,5.00582502,2572.5,2572.0,0.27512787]
[1747711540121,3.2078,2572.3,2572.0,0.27512787]
[1747711540320,1.2699,2572.2,2572.0,0.27512787]
[1747711540819,6.2699,2572.2,2571.2,0.26930285]
[1747711541023,3.2078,2571.8,2571.5,0.77756]
[1747711541220,3.2078,2571.8,2571.6,0.77754]
[1747711541221,2.2435,2571.7,2571.6,0.77754]
[1747711541725,2.2435,2571.7,2571.2,0.26930285]
[1747711541726,7.2435,2571.7,2571.2,0.26930285]
[1747711541918,3.2078,2571.4,2571.3,0.77763]
[1747711542118,3.29266477,2571.4,2571.3,0.77763]
[1747711542318,11.03266477,2571.4,2571.3,0.77763]
[1747711542524,6.03266477,2571.4,2571.3,0.77763]
[1747711545230,5.9478,2571.4,2571.3,0.77763]
[1747711546021,5.9478,2571.4,2571.2,0.00582502]
[1747711546228,1.3383,2571.3,2571.2,0.00582502]
[1747711547131,4.0783,2571.3,2571.2,0.00582502]
[1747711547428,4.0783,2571.3,2570.6,11.44089285]
[1747711547429,9.0783,2571.3,2570.6,9.49630285]
[1747711547624,3.2078,2571.1,2570.7,0.10472108]
[1747711547825,2.4663,2571.0,2570.7,0.88253108]
[1747711548021,3.5856,2571.0,2570.7,0.88253108]
[1747711548222,6.3256,2571.0,2570.9,0.77775]
[1747711548423,3.9993,2571.0,2570.9,0.88247108]
[1747711548728,2.74,2571.0,2570.9,0.88247108]
[1747711549125,0.00582502,2571.2,2571.1,0.77769]
[1747711549331,0.00582502,2571.2,2571.1,0.88241108]
[1747711549628,0.00582502,2571.2,2571.1,9.99541108]
[1747711549932,0.00582502,2571.2,2571.1,14.99541108]
[1747711550630,0.00582502,2571.2,2571.1,18.20321108]
[1747711551027,2.3582,2572.0,2571.6,0.77753]
[1747711551226,1.2893,2571.9,2571.6,0.88225108]
[1747711551424,3.2078,2571.7,2570.8,2.00066]
[1747711551728,3.23297,2571.9,2570.9,0.10472108]
[1747711551729,3.98542,2571.4,2570.9,0.10472108]
[1747711551930,3.98542,2571.4,2570.8,0.77778]
[1747711551931,2.4724,2571.3,2570.8,0.77778]
[1747711552131,3.6236,2571.3,2571.1,0.10472108]
[1747711552329,6.3636,2571.3,2571.1,0.88240108]
[1747711553036,6.3636,2571.3,2571.2,0.77766]
[1747711553230,3.6236,2571.3,2571.2,0.77766]
[1747711553635,3.6236,2571.3,2571.1,0.77767]
[1747711553833,3.6236,2571.3,2571.1,0.10472108]
[1747711554234,3.6236,2571.3,2571.1,0.88241108]
[1747711555835,3.6236,2571.3,2571.2,0.77766]
[1747711556232,0.08486477,2571.0,2570.7,10.38142502]
[1747711556528,1.261,2570.9,2570.8,0.77779]
[1747711556731,0.77779,2570.8,2570.7,0.00582502]
[1747711556938,0.77782,2570.7,2570.6,0.26930285]
[1747711557141,5.79842,2570.7,2570.5,0.4059078]
[1747711557442,3.2078,2570.6,2570.5,0.4059078]
[1747711557936,8.2078,2570.6,2570.5,0.4059078]
[1747711558132,11.72565,2570.6,2570.5,0.4059078]
[1747711560339,12.97485,2570.6,2570.5,0.4059078]
[1747711560638,12.197,2570.6,2570.5,1.1837778]
[1747711560939,7.197,2570.6,2570.5,1.1837778]
[1747711562036,7.197,2570.6,2570.5,0.4059078]
[1747711562339,7.97485,2570.6,2570.5,0.4059078]
[1747711562640,7.97485,2570.6,2570.3,0.00582502]
[1747711562641,0.77791,2570.4,2570.3,0.00582502]
[1747711562942,0.77794,2570.3,2570.2,0.53677854]
[1747711563139,0.77806,2569.9,2569.8,0.67136618]
[1747711563344,3.2078,2569.9,2569.8,0.67136618]
[1747711563842,5.28006,2569.9,2569.8,0.67136618]
[1747711564343,7.242,2569.9,2569.8,0.67136618]
[1747711565940,12.242,2569.9,2569.8,0.67136618]
[1747711566140,7.242,2569.9,2569.8,0.67136618]
[1747711566335,5.9478,2569.9,2569.8,1.55417726]
[1747711566736,2.74,2569.9,2569.8,10.67117726]
[1747711567241,0.00583646,2570.1,2570.0,0.77803]
[1747711567442,0.00583646,2570.1,2570.0,0.88275108]
[1747711567929,0.00583646,2570.1,2570.0,2.20575108]
[1747711568136,0.00583646,2570.1,2570.0,7.20575108]
[1747711568336,3.2078,2570.5,2570.4,0.77791]
[1747711568536,3.2078,2570.5,2570.4,0.88263108]
[1747711568937,3.2078,2570.5,2570.4,3.32233108]
[1747711569440,0.00583646,2570.7,2570.4,7.54442108]
[1747711569634,0.00583646,2570.7,2570.4,2.4397]
[1747711569836,0.00583646,2570.7,2570.6,0.88255108]
[1747711570247,0.00583646,2570.7,2570.6,9.09035108]
[1747711570541,0.00583646,2570.7,2570.6,3.31252108]
[1747711570834,0.00583646,2570.7,2570.6,0.10472108]
[1747711571341,0.00583646,2570.7,2570.6,2.12717108]
[1747711574138,0.00583646,2570.7,2570.6,7.12717108]
[1747711574442,0.00583646,2570.7,2570.6,10.33497108]
[1747711575348,3.2078,2571.4,2571.3,0.77763]
[1747711575552,2.91022849,2571.6,2571.5,0.77757]
[1747711576031,1.369,2571.6,2571.5,0.77757]
[1747711576231,4.109,2571.6,2571.5,0.77757]
[1747711576438,4.109,2571.6,2571.5,0.88229108]
[1747711577140,1.369,2571.6,2571.5,0.88229108]
[1747711579649,0.00583646,2571.8,2571.7,0.77751]
[1747711579845,0.00583646,2571.8,2571.2,3.2078]
[1747711580146,0.77775,2571.0,2569.8,4.23207]
[1747711580350,5.5555,2570.9,2570.8,1.31958023]
[1747711581153,8.2955,2570.9,2570.8,1.31958023]
[1747711582149,8.2955,2570.9,2570.8,0.77779]
[1747711582847,8.2955,2570.9,2570.4,10.3739]
[1747711582848,8.2955,2570.9,2570.3,0.00583646]
[1747711583042,3.2078,2570.6,2570.5,0.77786]
[1747711584654,1.3672,2570.8,2570.7,0.77782]
[1747711585147,4.1072,2570.8,2570.5,0.77786]
[1747711585850,4.1072,2570.8,2570.6,0.77784]
[1747711586051,4.1072,2570.8,2570.3,0.00583646]
[1747711586248,3.2078,2570.5,2570.3,0.00583646]
[1747711586449,1.3429,2570.4,2570.3,0.78377646]
[1747711587150,4.0829,2570.4,2570.3,0.78377646]
[1747711589250,4.0829,2570.4,2570.3,0.00583646]
[1747711589448,4.0829,2570.4,2570.3,0.78377646]
[1747711589851,4.0829,2570.4,2570.3,0.00583646]
[1747711590051,9.86081,2570.4,2570.3,0.00583646]
[1747711590253,0.778,2570.1,2570.0,0.27022896]
[1747711590557,3.9858,2570.1,2570.0,0.27022896]
[1747711590847,3.2078,2570.1,2570.0,0.27022896]
[1747711591052,2.3964,2570.2,2570.0,0.27022896]
[1747711591352,5.9478,2570.1,2570.0,1.04825896]
[1747711592052,2.74,2570.1,2570.0,2.10593]
[1747711592255,0.00583646,2570.4,2570.3,0.77794]
[1747711592460,1.24523646,2570.4,2570.3,0.77794]
[1747711593955,1.24523646,2570.4,2570.0,1.3279]
[1747711594254,1.24523646,2570.4,2570.3,0.77794]
[1747711594757,0.00583646,2570.4,2570.3,14.87094]
[1747711594957,0.00583646,2570.4,2570.3,18.07874]
[1747711596657,3.2078,2570.8,2570.7,0.77782]
[1747711596856,1.2796,2571.1,2571.0,0.77772]
[1747711598156,1.2796,2571.1,2570.7,0.7778]
[1747711598351,1.2796,2571.1,2570.8,0.77778]
[1747711598552,1.2796,2571.1,2570.6,10.65132896]
[1747711598751,1.2796,2571.1,2570.8,0.77777]
[1747711598952,1.2796,2571.1,2570.7,0.77779]
[1747711599151,1.2796,2571.1,2570.6,10.65132896]
[1747711599357,1.2796,2571.1,2570.8,0.77776]
[1747711599557,3.2078,2570.9,2570.5,0.27022896]
[1747711599860,3.2078,2570.6,2569.8,0.00583646]
[1747711600053,3.98577,2570.2,2569.8,0.00583646]
[1747711600455,8.98577,2570.2,2569.8,0.00583646]
[1747711600954,8.98577,2570.2,2569.9,0.77805]
[1747711601152,10.9478,2570.2,2570.1,1.31979023]
[1747711601356,5.9478,2570.2,2570.1,0.54179023]
[1747711601558,5.9478,2570.2,2570.1,1.31979023]
[1747711601749,5.9478,2570.2,2570.1,0.778]
[1747711602159,5.9478,2570.2,2570.0,0.77803]
[1747711602458,1.3672,2570.1,2570.0,0.77803]
[1747711603252,4.1072,2570.1,2570.0,0.77803]
[1747711605156,4.1072,2570.1,2569.9,1.3514]
[1747711606755,2.74,2570.1,2569.9,1.3514]
[1747711607159,4.0171,2570.1,2569.9,1.3514]
[1747711609058,2.74,2570.1,2570.0,0.77803]
[1747711609263,0.08486477,2570.4,2569.9,9.5592]
[1747711609561,0.08486477,2570.4,2570.2,0.77795]
[1747711609756,0.08486477,2570.4,2570.3,10.3405]
[1747711609948,1.2546,2570.6,2570.3,10.3405]
[1747711610154,3.9946,2570.6,2570.3,10.3405]
[1747711610361,3.9946,2570.6,2570.3,11.11843]
[1747711610561,3.9946,2570.6,2570.3,10.3405]
[1747711610963,2.74,2570.6,2570.3,11.11843]
[1747711611166,2.74,2570.6,2570.3,12.7464]
[1747711611560,4.0057,2570.6,2570.3,12.7464]
[1747711611758,4.78356,2570.6,2570.3,12.7464]
[1747711612064,4.0057,2570.6,2570.3,12.7464]
[1747711612366,4.0057,2570.6,2570.3,3.6444]
[1747711612565,4.0057,2570.6,2570.3,2.4607]
[1747711613253,4.0057,2570.6,2570.3,3.23863]
[1747711613757,4.0057,2570.6,2570.3,2.4607]
[1747711614161,4.0057,2570.6,2570.3,0.77793]
[1747711614361,5.1486,2570.6,2570.4,0.7779]
[1747711614560,5.1486,2570.6,2570.5,0.77787]
[1747711614767,5.1486,2570.6,2570.4,0.77788]
[1747711615169,5.1486,2570.6,2570.5,0.77787]
[1747711617672,4.0057,2570.6,2570.5,0.77787]
[1747711618179,2.74,2570.6,2570.5,0.77787]
[1747711619078,2.5291,2570.9,2570.7,0.7778]
[1747711620177,5.2691,2570.9,2570.7,0.7778]
[1747711620478,5.2691,2570.9,2570.8,0.77778]
[1747711621980,5.2691,2570.9,2570.6,0.77783]
[1747711622176,3.2078,2570.8,2570.7,0.77781]
[1747711622375,4.4545,2570.8,2570.7,0.77781]
[1747711622772,4.4545,2570.8,2570.2,0.40563685]
[1747711622975,4.4545,2570.8,2570.7,0.77781]
[1747711623176,7.1945,2570.8,2570.7,0.77781]
[1747711625184,2.74,2570.8,2570.7,0.77781]
[1747711625375,0.45697709,2570.8,2570.7,5.77781]
[1747711625677,7.09e-06,2570.8,2570.7,8.98561]
[1747711626279,0.00583646,2571.3,2571.2,0.77766]
[1747711626483,0.00583646,2571.3,2571.2,9.87766]
[1747711626981,0.00583646,2571.3,2571.2,13.56686]
[1747711627180,0.00583646,2571.3,2571.2,18.56686]
[1747711627780,0.00583646,2571.3,2571.2,18.66196732]
[1747711629180,21.99676646,2571.3,2570.8,0.54179023]
[1747711629374,3.2078,2570.9,2570.8,0.54179023]
[1747711629776,8.2078,2570.9,2570.8,0.54179023]
[1747711629981,3.2078,2570.9,2570.8,0.54179023]
[1747711630177,5.9478,2570.9,2570.8,0.54179023]
[1747711630979,5.9478,2570.9,2570.8,1.31957023]
[1747711631582,5.9478,2570.9,2570.8,0.54179023]
[1747711631980,7.2918,2570.9,2570.8,0.54179023]
[1747711632181,13.06955,2570.9,2570.8,0.54179023]
[1747711632378,0.77783,2570.7,2570.3,0.77792]
[1747711632678,3.2078,2570.4,2570.3,0.77792]
[1747711632879,3.2078,2570.4,2570.2,0.77795]
[1747711633071,3.2078,2570.4,2570.0,1.92328664]
[1747711633072,2.5774,2570.3,2570.0,1.92328664]
[1747711633280,3.2078,2570.1,2570.0,1.92328664]
[1747711633780,8.2078,2570.1,2570.0,1.92328664]
[1747711633981,9.5543,2570.1,2570.0,1.92328664]
[1747711634179,12.2943,2570.1,2570.0,1.92328664]
[1747711635480,13.4489,2570.1,2570.0,1.92328664]
[1747711635779,7.2943,2570.1,2570.0,1.92328664]
[1747711636078,7.2943,2570.1,2569.8,2.10541646]
[1747711636284,7.2943,2570.1,2569.8,0.00583646]
[1747711636582,7.2943,2570.1,2569.8,0.78390646]
[1747711637086,7.2943,2570.1,2569.8,0.00583646]
[1747711637587,8.4489,2570.1,2569.8,0.00583646]
[1747711638090,9.2269,2570.1,2569.8,0.00583646]
[1747711638388,8.4489,2570.1,2569.8,0.00583646]
[1747711638589,9.22691,2570.1,2569.8,0.00583646]
[1747711639090,0.77803,2570.0,2569.8,0.00583646]
[1747711639292,1.2994,2569.9,2569.8,0.00583646]
[1747711639891,5.9478,2570.1,2569.8,0.00583646]
[1747711640080,5.9478,2570.1,2569.9,0.77803]
[1747711640386,3.29266477,2570.1,2570.0,0.77803]
[1747711640690,0.08486477,2570.1,2570.0,3.98583]
[1747711640888,0.08486477,2570.1,2570.0,5.14423]
[1747711641287,0.08486477,2570.1,2570.0,6.41963]
[1747711641488,0.08486477,2570.1,2569.8,0.00583646]
[1747711641793,0.77806,2569.9,2569.8,0.00583646]
[1747711641993,7.69795,2570.0,2569.8,0.00583646]
[1747711642183,2.11106,2569.9,2569.8,0.00583646]
[1747711642691,1.333,2569.9,2569.8,0.00583646]
[1747711643293,4.073,2569.9,2569.8,0.00583646]
[1747711643493,4.85106,2569.9,2569.8,0.00583646]
[1747711644095,0.77818,2569.5,2569.4,0.19866126]
[1747711644391,3.98598,2569.5,2569.4,0.19866126]
[1747711644597,8.98598,2569.5,2569.4,0.19866126]
[1747711644787,0.77821,2569.4,2568.7,1.2411]
[1747711644988,3.2078,2569.0,2568.8,0.00583646]
[1747711645187,2.02666,2568.9,2568.8,0.00583646]
[1747711646291,3.9883,2568.9,2568.6,0.67136618]
[1747711646488,3.2078,2568.7,2568.5,0.77847]
[1747711646681,1.2483,2568.6,2568.5,0.77847]
[1747711647185,1.2483,2568.6,2568.3,0.00392147]
[1747711647590,2.02677,2568.6,2568.3,0.00392147]
[1747711647991,1.2483,2568.6,2568.3,0.00392147]
[1747711648185,3.9883,2568.6,2568.3,0.78246147]
[1747711648492,3.9883,2568.6,2568.5,0.77848]
[1747711649796,3.9883,2568.6,2568.4,1.256]
[1747711649997,0.77851,2568.4,2568.3,0.00392147]
[1747711650299,6.72631,2568.4,2568.3,0.00392147]
[1747711650597,6.72631,2568.4,2567.7,1.54930091]
[1747711650598,0.77869,2567.9,2567.6,3.2078]
[1747711650899,3.98644,2568.0,2567.6,3.2078]
[1747711651098,1.3127,2567.9,2567.5,1.256]
[1747711651395,1.3127,2567.9,2567.6,0.77874]
[1747711651396,2.09137,2567.9,2567.6,0.77874]
[1747711651797,3.2078,2567.7,2567.4,0.39613738]
[1747711651991,1.3127,2567.6,2567.4,0.39613738]
[1747711652189,4.0527,2567.6,2567.4,0.39613738]
[1747711652403,0.77878,2567.5,2567.4,0.39613738]
[1747711652696,3.30218,2567.5,2567.4,0.39613738]
[1747711652896,3.30218,2567.5,2566.8,1.92328664]
[1747711652897,0.77897,2566.9,2566.8,1.92328664]
[1747711653096,3.98677,2566.9,2566.8,1.92328664]
[1747711653396,9.169,2567.3,2566.8,1.92328664]
[1747711653397,3.2078,2567.1,2566.8,1.92328664]
[1747711653699,4.5205,2567.1,2566.8,1.92328664]
[1747711654401,4.5205,2567.1,2566.9,0.77895]
[1747711655193,3.2078,2567.4,2567.3,0.77885]
[1747711655494,0.77886,2567.3,2566.9,1.93134]
[1747711655698,3.2078,2567.1,2566.9,0.77894]
[1747711655992,1.3572,2567.0,2566.9,0.77894]
[1747711656791,1.3572,2567.0,2566.0,3.58834342]
[1747711656998,3.98687,2566.6,2566.3,1.1524]
[1747711657187,0.00583646,2566.7,2566.3,1.1524]
[1747711657393,0.00583646,2566.7,2566.6,0.77906]
[1747711657795,0.00583646,2566.7,2566.6,5.77906]
[1747711658396,0.00583646,2566.7,2566.6,0.77906]
[1747711658899,0.00583646,2566.7,2566.6,9.95106]
[1747711659201,0.00583646,2566.7,2566.4,2.4232]
[1747711659705,1.27003646,2566.7,2566.4,2.4232]
[1747711660000,1.27003646,2566.7,2566.3,1.1524]
[1747711660291,1.27003646,2566.7,2566.3,3.24045]
[1747711660498,3.2078,2566.6,2566.4,0.77912]
[1747711660694,1.27003646,2566.7,2566.4,0.77912]
[1747711660895,1.27003646,2566.7,2566.5,1.2892]
[1747711661094,1.27003646,2566.7,2566.5,1.29852367]
[1747711661298,0.00583646,2566.7,2566.6,0.77906]
[1747711661792,0.00583646,2566.7,2566.6,1.97626]
[1747711662000,3.2078,2567.2,2566.6,6.1972]
[1747711662201,3.2078,2567.2,2566.7,2.4005]
[1747711662396,3.2078,2567.2,2566.8,1.2892]
[1747711662602,3.2078,2567.2,2566.8,11.24217]
[1747711662797,3.2078,2567.2,2566.9,0.77896]
[1747711662998,1.3733,2567.1,2567.0,1.2892]
[1747711663499,3.2078,2567.2,2567.1,0.77891]
[1747711664096,0.00583646,2567.3,2567.2,0.77888]
[1747711664301,0.00583646,2567.3,2567.2,14.47338]
[1747711664603,0.00583646,2567.3,2567.2,19.47338]
[1747711665509,6.46e-06,2567.3,2567.2,19.47338]
[1747711667309,1.3138,2568.2,2567.5,1.94693]
[1747711667504,1.3138,2568.2,2567.6,6.7312]
[1747711667711,1.3138,2568.2,2568.1,0.7786]
[1747711668903,1.3138,2568.2,2567.8,0.77868]
[1747711669310,3.2078,2568.0,2567.4,4.4902]
[1747711669505,1.3168,2567.9,2567.7,0.7787]
[1747711669704,1.3168,2567.9,2567.4,1.2824]
[1747711670109,1.3168,2567.9,2567.8,0.77869]
[1747711670310,1.3168,2567.9,2567.4,1.2824]
[1747711670508,0.77879,2567.5,2567.1,3.98668]
[1747711670701,3.2078,2567.3,2566.9,2.2904]
[1747711670906,3.2078,2567.3,2567.2,0.77888]
[1747711671108,1.3168,2567.4,2567.3,0.77885]
[1747711674713,3.2078,2567.6,2567.5,0.77878]
[1747711675114,1.2474,2567.8,2567.7,0.77872]
[1747711675413,1.2474,2567.8,2567.4,0.77879]
[1747711675614,1.2474,2567.8,2567.4,9.109]
[1747711676008,1.2474,2567.8,2567.7,0.77872]
[1747711676815,1.1352,2568.3,2568.2,0.77857]
[1747711678219,2.4168,2568.3,2568.2,0.77857]
[1747711680607,3.19535,2568.3,2568.0,0.77861]
[1747711680811,3.2078,2568.2,2568.0,0.77861]
[1747711681018,1.3601,2568.1,2568.0,0.77861]
[1747711681321,4.1001,2568.1,2568.0,0.77861]
[1747711681818,2.74,2568.1,2568.0,0.77861]
[1747711682222,1.2922,2568.3,2568.2,0.77857]
[1747711682615,1.94658,2568.1,2566.8,3.21363646]
[1747711682816,0.77906,2566.6,2566.5,0.00932367]
[1747711683017,3.98686,2566.6,2566.5,0.00932367]
[1747711683309,5.9478,2566.6,2566.5,0.00932367]
[1747711683515,5.9478,2566.6,2566.5,0.78841367]
[1747711684113,3.2078,2566.6,2566.5,0.00932367]
[1747711686025,4.539,2566.6,2566.5,0.00932367]
[1747711686623,4.539,2566.6,2566.5,0.78841367]
[1747711687727,4.539,2566.6,2566.5,0.00932367]
[1747711690127,5.31806,2566.6,2566.5,0.00932367]
[1747711691933,4.539,2566.6,2566.5,1.43966072]
[1747711692126,4.539,2566.6,2566.5,0.66057072]
[1747711692428,4.539,2566.6,2566.5,0.00932367]
[1747711692630,5.31806,2566.6,2566.5,0.00932367]
[1747711693030,5.31806,2566.6,2566.5,0.66057072]
[1747711693431,4.539,2566.6,2566.5,0.66057072]
[1747711693632,4.539,2566.6,2566.5,1.43966072]
[1747711693931,4.539,2566.6,2566.5,0.66057072]
[1747711695125,0.00583646,2566.8,2566.5,1.94337072]
[1747711695322,0.00583646,2566.8,2566.7,1.43027705]
[1747711695527,1.37333646,2566.8,2566.7,0.65124705]
[1747711696130,1.37333646,2566.8,2566.7,1.43027705]
[1747711696936,0.00583646,2566.8,2566.7,1.43027705]
[1747711697138,0.00583646,2566.8,2566.7,7.72717705]
[1747711697337,0.00583646,2566.8,2566.7,17.99857705]
[1747711700131,6.46e-06,2566.8,2566.7,17.99857705]
[1747711700727,6.46e-06,2566.8,2566.7,13.00157705]
[1747711700934,6.46e-06,2566.8,2566.7,2.72717705]
[1747711702237,6.46e-06,2566.8,2566.7,1.43027705]
[1747711706942,6.46e-06,2566.8,2566.7,6.43027705]
[1747711709144,6.46e-06,2566.8,2566.7,10.54327705]
[1747711709340,1.94757,2566.7,2566.3,0.00583646]
[1747711709543,0.77936,2565.6,2565.5,1.92328664]
[1747711709743,3.98716,2565.6,2565.5,1.92328664]
[1747711709943,8.2078,2565.6,2565.5,1.92328664]
[1747711710239,10.9478,2565.6,2565.5,1.92328664]
[1747711710440,7.3101,2565.6,2565.5,2.70267664]
[1747711711239,4.5701,2565.6,2565.5,2.70267664]
[1747711711440,1.3623,2565.6,2565.5,2.84116944]
[1747711711646,1.3623,2565.6,2565.5,1.92328664]
[1747711711845,1.3623,2565.6,2565.5,2.70267664]
[1747711713647,1.3623,2565.6,2565.5,2.83903712]
[1747711714349,1.3623,2565.6,2565.5,0.9178828]